Cogmind - Beta 9.4 @@@ ROGUE MODE // 2020.02.18 @ 18:51:37 Player: s0lid Result: Destroyed by S-10 Pest with Light Assault Rifle Performance ------------- Evolutions (1) 500 Regions Visited (2) 400 Robots Destroyed (28) 140 Value Destroyed (563) 563 Prototype IDs (0) 0 Alien Tech Used (0) 0 Bonus (0) 0 TOTAL SCORE: 1603 Bonus ------- None Cogmind --------- Core Integrity 0/400 Matter 89/300 Energy 100/100 System Corruption 0% Temperature Cool (6) Movement Core (300) Ox5 Location -9/Materials Parts ------- > --- POWER (1) -------- (None) > --- PROPULSION (2) --- (None) > --- UTILITY (4) ------ Large Storage Unit Transport Network Coupler Targeting Computer > --- WEAPON (2) ------- Katana > --- INVENTORY (10) --- Heavy Ion Engine Light Nuclear Core Aluminum Leg Improved Hover Unit Improved Hover Unit Improved Hover Unit Improved Hover Unit Large Storage Unit Peak State ------------ > --- POWER ------------ Ion Engine > --- PROPULSION ------- Light Treads Wheel > --- UTILITY ---------- Large Storage Unit Large Storage Unit Targeting Computer Medium Armor Plating > --- WEAPON ----------- Assault Rifle Improved Light Cannon > --- INVENTORY -------- Ion Engine Light Ion Engine Heavy Ion Engine Light Nuclear Core Light Treads Light Treads Aluminum Leg Aluminum Leg Aluminum Leg Wheel Improved Hover Unit High-capacity Matter Pod Weight Redist. System Transport Network Coupler Mining Laser [Rating: 13] Favorites ----------- Power Light Ion Engine Engine Light Ion Engine Propulsion Light Treads Treads Light Treads Wheel Wheel Hover Unit Improved Hover Unit Utility Large Storage Unit Storage Large Storage Unit Processor Targeting Computer Protection Medium Armor Plating Weapon EM Pulse Gun Energy Gun EM Pulse Gun Ballistic Gun Assault Rifle Ballistic Cannon Improved Light Cannon Launcher Grenade Launcher Special Weapon Mining Laser Slashing Weapon Katana Build | -11 -10 -9 ------- Run | Scr Mat Mat Slots Evolved 2 | . . 2 Power . | . . . Propulsion . | . . . Utility 2 | . . 2 Weapon . | . . . Parts Attached 36 | 6 13 17 Power 3 | 1 1 1 Engine 3 | 1 1 1 Core . | . . . Reactor . | . . . Propulsion 9 | 2 2 5 Treads 3 | 1 1 1 Leg . | . . . Wheel 4 | 1 1 2 Hover 2 | . . 2 Flight . | . . . Utility 6 | 1 2 3 Device . | . . . Storage 3 | 1 2 . Processor 2 | . . 2 Hackware . | . . . Protection 1 | . . 1 Artifact . | . . . Weapon 18 | 2 8 8 Energy Gun 6 | 2 3 1 Energy Cannon . | . . . Ballistic Gun 4 | . 2 2 Ballistic Cannon 1 | . . 1 Launcher 4 | . 2 2 Special Weapon 2 | . 1 1 Impact Weapon . | . . . Slashing Weapon 1 | . . 1 Piercing Weapon . | . . . Special Melee Weapon . | . . . Unidentified Prototypes . | . . . Parts Lost 15 | . 2 13 Power 2 | . . 2 Propulsion 5 | . . 5 Utility 1 | . . 1 Weapon 7 | . 2 5 Highest Loss Streak 13 | . 2 13 Average Slot Usage (%) 97 | . 99 91 Engine 13 | . 14 10 Treads 16 | . 18 10 Wheel 9 | . 9 9 Storage 26 | . 27 21 Processor 2 | . . 12 Protection 1 | . . 7 Energy Gun 11 | . 13 4 Ballistic Gun 10 | . 11 9 Special Weapon 2 | . 2 . Naked Turns . | . . . Heaviest Build 50 | 11 40 50 Greatest Support 40 | 20 40 20 Greatest Overweight (x) 4 | 1 3 4 Average Overweight (x) 2 | . 2 3 Largest Inventory Capacity 16 | 6 16 16 Average Capacity 15 | 5 15 15 Most Carried 16 | 4 16 16 Average Carried 9 | 2 8 14 Final Capacity 16 | 6 16 10 Final Carried 16 | 4 16 8 Class Distribution -------------------- 100% | Mutant Dominant Class ---------------- Mutant | -10/Materials Mutant | -9/Materials Resources | -11 -10 -9 ----------- Run | Scr Mat Mat Matter Collected 495 | 180 295 20 Remotely . | . . . Salvage Created 856 | . 545 311 Parts 58 | . 32 26 Haulers Intercepted 4 | . 2 2 Recyclers Shooed 1 | . 1 . Parts Field Recycled . | . . . Retrieved Matter . | . . . Parts Self-Destructed . | . . . Prevented . | . . . Kills | -11 -10 -9 ------- Run | Scr Mat Mat Combat Hostiles Destroyed 19 | . 9 10 Melee 1 | . . 1 Guns 8 | . 6 2 AOE 10 | . 3 7 Classes Destroyed 8 | . 7 1 Builder 2 | . 2 . Tunneler 1 | . 1 . Hauler 4 | . 2 2 Recycler 1 | . 1 . Watcher 1 | . 1 . Swarmer 8 | . 3 5 Grunt 10 | . 6 4 Duelist 1 | . . 1 Best Kill Streak 7 | . 5 7 Combat Bots Only 7 | . 3 7 Max Kills in Single Turn 4 | . 4 4 Gunslinging . | . . . Exploded 4 | . 2 4 Melee 1 | . . 1 Uniques/NPCs Destroyed . | . . . Combat | -11 -10 -9 -------- Run | Scr Mat Mat Damage Taken 1895 | . 405 1490 Core 460 | . 57 403 Absorbed by Shields . | . . . Core Remaining (%) 88 | 100 77 . Volleys Fired 66 | . 45 21 Largest 2 | . 2 2 Hottest 100 | . 100 80 Shots Fired 109 | . 78 31 Gun 88 | . 70 18 Cannon 7 | . . 7 Launcher 10 | . 4 6 Special 4 | . 4 . Kinetic 48 | . 30 18 Thermal 11 | . 4 7 Explosive 10 | . 4 6 Electromagnetic 40 | . 40 . Robot Hit Streak 5 | . 4 5 Robot Miss Streak 5 | . 5 2 Penetration Max . | . . . Secondary Targets . | . . . Shots Hit Robots 58 | . 39 19 Core Hits 37 | . 21 16 Critical Hits 1 | . 1 . Critical Kills 1 | . 1 . Critical Parts Destroyed . | . . . Melee Attacks 4 | . . 4 Impact . | . . . Slashing 4 | . . 4 Piercing . | . . . Sneak Attacks . | . . . Combat Hostiles . | . . . Follow-up Attacks . | . . . Damage Inflicted 1495 | . 808 687 Guns 508 | . 390 118 Cannons 61 | . . 61 Explosions 865 | . 418 447 Melee 61 | . . 61 Ramming . | . . . Kinetic 261 | . 132 129 Thermal 125 | . 75 50 Explosive 790 | . 343 447 Electromagnetic 258 | . 258 . Impact . | . . . Slashing 61 | . . 61 Piercing . | . . . Highest Corruption . | . . . Average Corruption . | . . . Corruption Purged . | . . . Overload Shots . | . . . Overflow Damage 33 | . 33 . Projectiles . | . . . Explosions 33 | . 33 . Melee . | . . . Knockbacks . | . . . Impact . | . . . Kinetic . | . . . Secondary . | . . . Self-Inflicted Damage 78 | . 77 1 Shots 3 | . 2 1 Rammed . | . . . Targets Rammed . | . . . Kicked . | . . . Crushed . | . . . Highest Temperature 123 | . 123 40 Average Temperature 31 | . 41 11 Received Heat Transfer 612 | . 120 492 Siege Activations . | . . . Robots Corrupted . | . . . Combat Hostiles . | . . . Parts Fried 1 | . 1 . Impact Corruptions . | . . . Robots Melted . | . . . Combat Hostiles . | . . . Parts Melted . | . . . Heat Transferred 248 | . 100 148 Parts Sabotaged . | . . . Parts Stolen . | . . . Parts Stripped . | . . . Power Chain Reactions 1 | . 1 . Missiles Intercepted . | . . . Alert | -11 -10 -9 ------- Run | Scr Mat Mat Peak Influence 262 | . 262 223 Average Influence 99 | . 98 140 Maximum Alert Level 1 | . 1 1 Low Security (%) 83 | 100 84 73 Level 1 16 | . 15 26 Level 2 . | . . . Level 3 . | . . . Level 4 . | . . . Level 5 . | . . . High Security . | . . . Max Security . | . . . Squads Dispatched 2 | . . 2 Investigation . | . . . Extermination . | . . . Reinforcement 2 | . . 2 Assault . | . . . Garrison . | . . . Intercept . | . . . Construction Impeded . | . . . Haulers Reinforced . | . . . Stealth | -11 -10 -9 --------- Run | Scr Mat Mat Distress Signals 3 | . 1 2 Communications Jammed . | . . . Distress Signals . | . . . Times Spotted 36 | . 13 23 Peak Tracking Total 9 | . 4 9 Tactical Retreats 1 | . . 1 Traps | -11 -10 -9 ------- Run | Scr Mat Mat Traps Triggered . | . . . Indirectly . | . . . Trap Hack Attempts . | . . . Triggered . | . . . Disarmed . | . . . Reprogrammed . | . . . Reused . | . . . Traps Extracted . | . . . Installed . | . . . Triggered . | . . . Machines | -11 -10 -9 ---------- Run | Scr Mat Mat Machines Disabled 2 | . 1 1 Max in Single Turn 1 | . 1 1 Machines Sabotaged . | . . . Garrisons Compromised . | . . . Overloaded Fab Kills . | . . . Fab Network Shutdowns . | . . . Hacking | -11 -10 -9 --------- Run | Scr Mat Mat Machines Accessed 7 | . 5 2 Terminals 6 | . 5 1 Fabricators . | . . . Repair Stations . | . . . Recycling Units . | . . . Scanalyzers 1 | . . 1 Garrison Access . | . . . Total Hacks 16 | . 11 5 Successful 10 | . 8 2 Failed 6 | . 3 3 Catastrophic . | . . . Database Lockouts . | . . . Manual 9 | . 5 4 Terminals 15 | . 11 4 Fabricators . | . . . Repair Stations . | . . . Recycling Units . | . . . Scanalyzers 1 | . . 1 Garrison Access . | . . . Terminal Hacks 5 | . 5 . Emergency Access Points 1 | . 1 . Alert Level 1 | . 1 . Unreport Threat 1 | . 1 . Locate Traps 2 | . 2 . Fabricator Hacks . | . . . Repair Station Hacks . | . . . Recycling Unit Hacks . | . . . Scanalyzer . | . . . Garrison Access Hacks . | . . . Unauthorized Hacks 12 | . 6 6 Terminals 5 | . 3 2 Track 1 | . . 1 Botnet 4 | . 3 1 Fabricators . | . . . Repair Stations . | . . . Recycling Units . | . . . Scanalyzers . | . . . Garrison Access . | . . . Data Cores Recovered . | . . . Used . | . . . Hacking Detections 4 | . 3 1 Full Trace Events . | . . . Feedback Events . | . . . Feedback Blocked . | . . . Robot Schematics Acquired . | . . . Robots Built . | . . . Matter . | . . . Time . | . . . Total Robot Build Rating . | . . . Part Schematics Acquired . | . . . Parts Built . | . . . Matter . | . . . Time . | . . . Total Part Build Rating . | . . . Parts Repaired . | . . . Time . | . . . Parts Recycled . | . . . Recycled Matter . | . . . Retrieved Matter . | . . . Retrieved Components . | . . . Parts Scanalyzed . | . . . Part Schematics Acquired . | . . . Parts Damaged . | . . . Bothacking | -11 -10 -9 ------------ Run | Scr Mat Mat Used RIF Installer . | . . . Robots Hacked . | . . . Non-combat . | . . . Combat . | . . . Robot Hacks Applied . | . . . Relay Couplers Released . | . . . Robots Rewired . | . . . Allies Hacked . | . . . Hacks Repelled . | . . . Allies | -11 -10 -9 -------- Run | Scr Mat Mat Total Allies . | . . . Largest Group . | . . . Highest-Rated Group . | . . . Highest-Rated Ally . | . . . Total Orders . | . . . Ally Attacks . | . . . Total Damage . | . . . Kills . | . . . Allies Corrupted . | . . . Allies Melted . | . . . Intel | -11 -10 -9 ------- Run | Scr Mat Mat Robot Analysis Total . | . . . Derelict Logs Recovered . | . . . Drone Launches . | . . . Drone Recoveries . | . . . Exploration | -11 -10 -9 ------------- Run | Scr Mat Mat Turns Passed 1072 | 77 781 214 Spaces Moved 617 | 42 475 100 Core 2 | 2 . . Treads 153 | 39 111 3 Legs . | . . . Wheels 462 | 1 364 97 Hover . | . . . Flight . | . . . Fastest Speed 50 | 50 90 100 Average Speed 123 | 154 121 120 Slowest Speed 180 | 160 160 180 Overloaded Moves . | . . . Propulsion Burnouts . | . . . Robots Hopped . | . . . Cave-ins Triggered . | . . . Exploration Rate (%) 26 | 4 61 13 Regions Visited 2 Branch Regions . Pre-discovered Areas . | . . . Known Exits Taken . | . . . Unknown Exits Taken 2 | 1 1 . Scrap Searched . | . . . Spaces Dug 4 | . 4 . Terrain Destroyed 51 | . 37 14 Melee . | . . . Projectile 4 | . 4 . AOE 47 | . 33 14 Actions | -11 -10 -9 --------- Run | Scr Mat Mat Total 799 | 51 592 156 Wait 44 | . 43 1 Move 615 | 41 474 100 Hop . | . . . Pick Up 23 | 4 14 5 Fast Attach 12 | 6 2 4 Attach 10 | . 2 8 Detach 2 | . 1 1 Swap 14 | . 9 5 Drop 9 | . 2 7 Fire 66 | . 45 21 Melee 4 | . . 4 Ram . | . . . Kick . | . . . Crush . | . . . Escape Stasis . | . . . Rewire . | . . . Trap . | . . . Miscellaneous . | . . . Route ------- -11/Scrapyard -10/Materials (discovered 2 exits: *Mat / [*Min]) -9/Materials History --------- Turn | Location | Event 11 | -11/Scrapyard | Discovered new exit (range 16) 78 | -11/Scrapyard | Entered Materials 239 | -10/Materials | Discovered new exit (range 8) 312 | -10/Materials | Build established: Mutant 455 | -10/Materials | Discovered new exit (range 5) 859 | -10/Materials | Entered another Materials area 859 | -9/Materials | Evolved 2 slots: Utility x2 972 | -9/Materials | Destroyed 7 combat bots 1066 | -9/Materials | Core integrity fell below 50% 1072 | -9/Materials | Core integrity fell below 20% 1073 | -9/Materials | Destroyed by S-10 Pest with Light Assault Rifle Last Messages --------------- 01044_ Assault Rifle destroyed. 01044_ Lgt. Treads destroyed. 01048_ Imp. Light Cannon destroyed. 01048_ K-01 Serf collects debris. 01050_ Dropped Weight Redist. System. 01051_ Dropped Hcp. Matter Pod. 01051_ Dropped Lgt. Ion Engine. 01052_ Dropped Lgt. Treads. 01056_ K-01 Serf collects debris. 01056_ U-05 Engineer destroyed. 01058_ Mining Laser destroyed. 01060_ Wheel destroyed. 01061_ Lgt. Treads destroyed. 01062_ K-01 Serf collects debris. 01062_ Acquired Katana. 01064_ K-01 Serf collects debris. 01070_ U-05 Engineer lays Concrete. 01071_ Ion Engine destroyed. 01071_ K-01 Serf collects debris. 01071_ S-10 Pest destroyed. Map ----- +----------------------------------------------------+ | ??????????????????????????????????????????? | | ??????????????????????????????????????????? | | ??????????????????????????????????????????? | | ??????????????????????????????????????????? | | ??????????????????????????????????????????? | | ??????????????????????????????????????????? | | ??????????????????????????????????????????? | | ??????????????????????????????????????????? | | ??????????????????????????????????????????? | | ??????????????????????????????????????????? | | ???????????????????????? ????????????????? | | ???????????????????????? ????????????????? | | ???????????????????????# ????????????????? | | ??????????????????????? [ ????????????????? | | ???????????????????????=%!#???????????????? | | ???????????????????????#* #???????????????? | | ???????????????????????# #???????????????? | | ???????????????????????#su#???????????????? | | ???????????????????????# #???????????????? | | ???????????????????????# #???????????????? | | ???????????????????????# #???????????????? | | ???????????????????????# #???????????????? | | ???????#######?????????#s #???????????????? | | ???????# #????????#%=####????????????? | | ???????# ""#????????#!sY ########?????? | | ???????# T"#????????#%@ = #?????? | | ???????# ""#????????#== #?????? | | ???????# #????????#!Yk #?????? | | ???????# #????????#!!!= ###+#######??? | | ???????# #????????##=g!## #??? | | ???????# #?????????#=g|## "" [ #??? | | ???????# """ #?????????#% ## ""S #??? | | ???????# """ #?????????# = ## "" """ #??? | | ???????# """ #?????????#] ## """ #??? | | ?"?????# """ #?????????#o ## """ #??? | | ???# #######??##u ## """ #??? | | #######+########## # #??? | | ]*% = ###########??? | | *] ] T #????????????? | | != #????????????? | | [ #####+### #????????????? | | ## #######????????????? | | """ "# """ #??????????????????? | | ?"" T# """ #??????????????????? | | ?"" % "# """ #??????????????????? | | ? ## #??????????????????? | | ? # """ #??????????????????? | | ?"" ## """ #??????????????????? | | ??"" ? ""? #??????????Y???????? | | ??" #? ?? #??????????????????? | +----------------------------------------------------+ Best States ------------- Heat Dissipation 28 Energy Generation 10 Energy Capacity 250 Matter Stores 300 Matter Capacity 300 Sight Range 16 Terrain Scan Density 10 Armor Coverage 225 Evasion (%) 42 Targeting Accuracy 5 Recoil Reduction 2 Item Schematics ----------------- None Robot Schematics ------------------ None Fabricated ------------ Nothing Alien Tech Used ----------------- None Achievements -------------- None Challenges ------------ None Game ------ Seed CloakingSwarmPick Manual? 0 Play Time 00:18:13 Cumulative 95.9 hours Start 2020.02.18 @ 18:37:06 End 2020.02.18 @ 18:51:37 Sessions 1 Manual Loads 0 Difficulty Rogue Special Mode None Game No. 91 Rogue 91 Adventurer 0 Explorer 0 Win Type - Total 0 Types 0/0/0/0/0/0/0 Lore% 27 Gallery% 54 Achievement% 30 Wizard Run 0 Options --------- ASCII 0 Keyboard 1 Movement Vi Keybinds 0 Fullscreen 2 Font 32/Smallcaps Map View 76x50 Tactical HUD 1 Map Filters NONE Filters NONE Steam 1 RUN: fba68f11-040a-41c9-abfb-de02ae8512b3